[Event "Early-Titled-Tuesday-Blitz-October-17-2023"]
[Site "Chess.com"]
[Date "2023.10.17"]
[Round "3"]
[White "Sokoloco"]
[Black "rasmussvane"]
[Result "1-0"]
[WhiteElo "2708"]
[BlackElo "2986"]
[TimeControl "180+1"]
[EndTime "8:30:05 PDT"]
[Termination "Sokoloco won by resignation"]

1. b3 {[%clk 0:03:00.9]} 1... d5 {[%clk 0:02:56.3]} 2. Bb2 {[%clk 0:03:00.8]}
2... h6 {[%clk 0:02:53.5]} 3. e3 {[%clk 0:03:00.4]} 3... Bf5 {[%clk 0:02:53.7]}
4. d4 {[%clk 0:02:59.4]} 4... e6 {[%clk 0:02:53.6]} 5. Bd3 {[%clk 0:03:00]} 5...
Nf6 {[%clk 0:02:53.2]} 6. Nf3 {[%clk 0:02:59.1]} 6... Bd6 {[%clk 0:02:52.2]} 7.
Ne5 {[%clk 0:02:59]} 7... Qe7 {[%clk 0:02:40.9]} 8. Nd2 {[%clk 0:02:56.7]} 8...
Nbd7 {[%clk 0:02:37.7]} 9. O-O {[%clk 0:02:51.4]} 9... O-O {[%clk 0:02:36.5]}
10. Qe2 {[%clk 0:02:37.6]} 10... Rac8 {[%clk 0:02:27.1]} 11. Rac1 {[%clk
0:02:27.3]} 11... Rfd8 {[%clk 0:02:23.7]} 12. Rfd1 {[%clk 0:02:21.9]} 12... Ne4
{[%clk 0:02:03.5]} 13. Bxe4 {[%clk 0:02:08.9]} 13... dxe4 {[%clk 0:01:59.2]} 14.
Ndc4 {[%clk 0:02:04.3]} 14... Bxe5 {[%clk 0:01:51.3]} 15. dxe5 {[%clk 0:01:52]}
15... Qg5 {[%clk 0:01:50.7]} 16. Kh1 {[%clk 0:01:32]} 16... Nf8 {[%clk
0:01:05.9]} 17. h3 {[%clk 0:01:10.9]} 17... h5 {[%clk 0:01:03.1]} 18. Rxd8
{[%clk 0:00:57.6]} 18... Rxd8 {[%clk 0:01:03]} 19. Rd1 {[%clk 0:00:58.5]} 19...
Rxd1+ {[%clk 0:00:53.5]} 20. Qxd1 {[%clk 0:00:59.4]} 20... Ng6 {[%clk 0:00:54]}
21. Na5 {[%clk 0:00:47.8]} 21... Nh4 {[%clk 0:00:49]} 22. Qf1 {[%clk 0:00:47.1]}
22... b6 {[%clk 0:00:45.7]} 23. Nc6 {[%clk 0:00:47.7]} 23... a5 {[%clk
0:00:46.1]} 24. Ba3 {[%clk 0:00:43.3]} 24... Ng6 {[%clk 0:00:41.2]} 25. Qd1
{[%clk 0:00:42.9]} 25... Qh4 {[%clk 0:00:37.7]} 26. Kg1 {[%clk 0:00:33.3]} 26...
Bxh3 {[%clk 0:00:34.7]} 27. gxh3 {[%clk 0:00:29.7]} 27... Qxh3 {[%clk
0:00:35.6]} 28. Ne7+ {[%clk 0:00:27.4]} 28... Nxe7 {[%clk 0:00:30.9]} 29. Bxe7
{[%clk 0:00:28.3]} 29... Qf5 {[%clk 0:00:20.7]} 30. Bd8 {[%clk 0:00:22.3]} 30...
Qxe5 {[%clk 0:00:19.6]} 31. Qd4 {[%clk 0:00:19.7]} 31... Qf5 {[%clk 0:00:19.7]}
32. Bxc7 {[%clk 0:00:19.5]} 32... Qg4+ {[%clk 0:00:20.3]} 33. Kf1 {[%clk
0:00:19.8]} 33... h4 {[%clk 0:00:21]} 34. Qd6 {[%clk 0:00:11.6]} 34... h3 {[%clk
0:00:19]} 35. Ke1 {[%clk 0:00:10.5]} 35... b5 {[%clk 0:00:15.2]} 36. Qg3 {[%clk
0:00:10]} 36... Qh5 {[%clk 0:00:14.4]} 37. Be5 {[%clk 0:00:09.5]} 37... g5
{[%clk 0:00:11.6]} 38. Bd4 {[%clk 0:00:07.2]} 38... Kh7 {[%clk 0:00:06.8]} 39.
Qe5 {[%clk 0:00:06.9]} 39... Qh6 {[%clk 0:00:04.6]} 40. Qh8+ {[%clk 0:00:05.8]}
40... Kg6 {[%clk 0:00:05.1]} 41. Qg8+ {[%clk 0:00:04]} 41... Kh5 {[%clk
0:00:04.2]} 42. Qxf7+ {[%clk 0:00:04.7]} 42... Kg4 {[%clk 0:00:04.8]} 43. Bf6
{[%clk 0:00:04.8]} 43... h2 {[%clk 0:00:05]} 44. Qxe6+ {[%clk 0:00:05.3]} 44...
Kh4 {[%clk 0:00:05]} 45. Qxe4+ {[%clk 0:00:05.6]} 45... Kh5 {[%clk 0:00:05.5]}
46. Be5 {[%clk 0:00:05.2]} 46... Qe6 {[%clk 0:00:05.1]} 47. Qf3+ {[%clk
0:00:03.5]} 47... Kg6 {[%clk 0:00:05.7]} 48. Bxh2 {[%clk 0:00:03.6]} 48... Qc8
{[%clk 0:00:04.9]} 49. Qe4+ {[%clk 0:00:03.5]} 49... Kh6 {[%clk 0:00:05.1]} 50.
Bg3 {[%clk 0:00:04]} 50... Qc3+ {[%clk 0:00:05.2]} 51. Ke2 {[%clk 0:00:04.2]}
51... a4 {[%clk 0:00:05.6]} 52. Qd3 {[%clk 0:00:04.7]} 52... Qc6 {[%clk
0:00:05.5]} 53. bxa4 {[%clk 0:00:05]} 53... bxa4 {[%clk 0:00:05.8]} 54. Qd6+
{[%clk 0:00:05.3]} 54... Qxd6 {[%clk 0:00:05.9]} 55. Bxd6 {[%clk 0:00:06.2]} 1-0

[Event "Early-Titled-Tuesday-Blitz-October-17-2023"]
[Site "Chess.com"]
[Date "2023.10.17"]
[Round "3"]
[White "Karttunen"]
[Black "ajedrezhoy"]
[Result "1-0"]
[WhiteElo "2571"]
[BlackElo "2374"]
[TimeControl "180+1"]
[EndTime "8:30:05 PDT"]
[Termination "Karttunen won on time"]

1. d4 {[%clk 0:03:00.9]} 1... Nf6 {[%clk 0:02:58.3]} 2. c4 {[%clk 0:03:00.7]}
2... e6 {[%clk 0:02:57]} 3. Nc3 {[%clk 0:02:58.2]} 3... Bb4 {[%clk 0:02:56.2]}
4. e3 {[%clk 0:02:58.3]} 4... b6 {[%clk 0:02:56]} 5. Bd3 {[%clk 0:02:55.6]} 5...
Bb7 {[%clk 0:02:55.4]} 6. Ne2 {[%clk 0:02:52.5]} 6... O-O {[%clk 0:02:52.9]} 7.
O-O {[%clk 0:02:50.1]} 7... d5 {[%clk 0:02:51.4]} 8. cxd5 {[%clk 0:02:44]} 8...
exd5 {[%clk 0:02:50.1]} 9. Bd2 {[%clk 0:02:43.6]} 9... Re8 {[%clk 0:02:45.7]}
10. Ng3 {[%clk 0:02:36.8]} 10... g6 {[%clk 0:02:41.5]} 11. Rc1 {[%clk
0:02:31.9]} 11... a6 {[%clk 0:02:40.2]} 12. Re1 {[%clk 0:02:10.7]} 12... Nbd7
{[%clk 0:02:37.6]} 13. a3 {[%clk 0:01:57.1]} 13... Bd6 {[%clk 0:02:30.5]} 14. b4
{[%clk 0:01:26.9]} 14... b5 {[%clk 0:02:12.1]} 15. f3 {[%clk 0:01:22.3]} 15...
Nb6 {[%clk 0:02:10.3]} 16. Nce2 {[%clk 0:01:03]} 16... Nc4 {[%clk 0:02:07.9]}
17. Bxc4 {[%clk 0:01:01.4]} 17... dxc4 {[%clk 0:01:58.7]} 18. e4 {[%clk
0:00:56.6]} 18... Bf8 {[%clk 0:01:57.3]} 19. Bc3 {[%clk 0:00:46.5]} 19... h5
{[%clk 0:01:36]} 20. Qc2 {[%clk 0:00:40.6]} 20... h4 {[%clk 0:01:26.2]} 21. Nh1
{[%clk 0:00:37.2]} 21... Nh5 {[%clk 0:01:23.6]} 22. Rcd1 {[%clk 0:00:32.5]}
22... Bh6 {[%clk 0:01:17.9]} 23. Nf2 {[%clk 0:00:32]} 23... Be3 {[%clk
0:01:09.8]} 24. Bd2 {[%clk 0:00:30.4]} 24... Bxd2 {[%clk 0:00:54]} 25. Qxd2
{[%clk 0:00:30.1]} 25... c6 {[%clk 0:00:41]} 26. Qh6 {[%clk 0:00:27.1]} 26...
Qf6 {[%clk 0:00:33.1]} 27. Ng4 {[%clk 0:00:25.5]} 27... Qg7 {[%clk 0:00:32.6]}
28. Qg5 {[%clk 0:00:25.8]} 28... Bc8 {[%clk 0:00:19.4]} 29. Qxh4 {[%clk
0:00:25.7]} 29... Be6 {[%clk 0:00:16.8]} 30. Qg5 {[%clk 0:00:24.6]} 30... f6
{[%clk 0:00:16]} 31. Qe3 {[%clk 0:00:20.6]} 31... f5 {[%clk 0:00:16]} 32. Nf2
{[%clk 0:00:20.7]} 32... Rad8 {[%clk 0:00:15.3]} 33. Qg5 {[%clk 0:00:20.3]}
33... Qf6 {[%clk 0:00:14.1]} 34. Qh6 {[%clk 0:00:20.1]} 34... Qg7 {[%clk
0:00:14]} 35. Qc1 {[%clk 0:00:19.9]} 35... fxe4 {[%clk 0:00:12.7]} 36. fxe4
{[%clk 0:00:20]} 36... Rf8 {[%clk 0:00:11.7]} 37. Rf1 {[%clk 0:00:19.4]} 37...
Rf7 {[%clk 0:00:10.7]} 38. Qe3 {[%clk 0:00:19.2]} 38... Rdf8 {[%clk 0:00:10.7]}
39. Nh1 {[%clk 0:00:15.2]} 39... Bg4 {[%clk 0:00:10.3]} 40. Rxf7 {[%clk
0:00:14.6]} 40... Qxf7 {[%clk 0:00:10.2]} 41. Re1 {[%clk 0:00:14.6]} 41... Bxe2
{[%clk 0:00:08.5]} 42. Qxe2 {[%clk 0:00:14.4]} 42... Nf4 {[%clk 0:00:08.3]} 43.
Qe3 {[%clk 0:00:10.2]} 43... Nd3 {[%clk 0:00:08]} 44. Rd1 {[%clk 0:00:10.5]}
44... Qf4 {[%clk 0:00:06.5]} 45. Qxf4 {[%clk 0:00:09.9]} 45... Rxf4 {[%clk
0:00:06.7]} 46. Ng3 {[%clk 0:00:10.8]} 46... Kg7 {[%clk 0:00:05.2]} 47. Ne2
{[%clk 0:00:06.6]} 47... Rxe4 {[%clk 0:00:04.7]} 48. Nc3 {[%clk 0:00:05.8]}
48... Rxd4 {[%clk 0:00:03.9]} 49. g3 {[%clk 0:00:06.4]} 49... Rd8 {[%clk
0:00:02.6]} 50. Kf1 {[%clk 0:00:06]} 50... Re8 {[%clk 0:00:02.5]} 51. Rd2 {[%clk
0:00:05.7]} 51... Re7 {[%clk 0:00:01.2]} 52. Re2 {[%clk 0:00:05.4]} 1-0

[Event "Early-Titled-Tuesday-Blitz-October-17-2023"]
[Site "Chess.com"]
[Date "2023.10.17"]
[Round "3"]
[White "itsdsyr"]
[Black "Sanyura"]
[Result "0-1"]
[WhiteElo "2292"]
[BlackElo "2542"]
[TimeControl "180+1"]
[EndTime "8:30:06 PDT"]
[Termination "Sanyura won on time"]

1. d4 {[%clk 0:02:59.1]} 1... e6 {[%clk 0:02:50.5]} 2. c4 {[%clk 0:02:55.2]}
2... d5 {[%clk 0:02:36.2]} 3. Nf3 {[%clk 0:02:35]} 3... Nf6 {[%clk 0:02:30.9]}
4. Nc3 {[%clk 0:02:34.3]} 4... dxc4 {[%clk 0:02:26.7]} 5. e4 {[%clk 0:02:26]}
5... b5 {[%clk 0:02:24.3]} 6. e5 {[%clk 0:02:22.2]} 6... Nd5 {[%clk 0:02:20.3]}
7. Nxb5 {[%clk 0:02:20.4]} 7... Nb6 {[%clk 0:02:15]} 8. Be2 {[%clk 0:01:56.2]}
8... Nc6 {[%clk 0:02:05.9]} 9. O-O {[%clk 0:01:54.5]} 9... Be7 {[%clk
0:02:05.3]} 10. Be3 {[%clk 0:01:54.7]} 10... O-O {[%clk 0:02:04.5]} 11. Rc1
{[%clk 0:01:54.7]} 11... Ba6 {[%clk 0:01:54]} 12. Nc3 {[%clk 0:01:40.4]} 12...
Nd5 {[%clk 0:01:53.3]} 13. Qd2 {[%clk 0:01:31.7]} 13... Ncb4 {[%clk 0:01:49.2]}
14. a3 {[%clk 0:01:07.2]} 14... Nd3 {[%clk 0:01:46.7]} 15. Bxd3 {[%clk
0:01:07.5]} 15... cxd3 {[%clk 0:01:47.6]} 16. Ne1 {[%clk 0:01:06.7]} 16... c5
{[%clk 0:01:34.3]} 17. dxc5 {[%clk 0:00:47]} 17... Nxe3 {[%clk 0:01:31.8]} 18.
fxe3 {[%clk 0:00:46.7]} 18... Bxc5 {[%clk 0:01:30.7]} 19. b4 {[%clk 0:00:44.8]}
19... Bxe3+ {[%clk 0:01:26.3]} 20. Qxe3 {[%clk 0:00:42.8]} 20... d2 {[%clk
0:01:26.6]} 21. Rd1 {[%clk 0:00:42.3]} 21... Bxf1 {[%clk 0:01:23]} 22. Rxd2
{[%clk 0:00:38.6]} 22... Qc7 {[%clk 0:01:20.1]} 23. Kxf1 {[%clk 0:00:36.8]}
23... Rac8 {[%clk 0:01:19.2]} 24. Nb5 {[%clk 0:00:34.4]} 24... Qc4+ {[%clk
0:01:15.4]} 25. Qe2 {[%clk 0:00:34.6]} 25... Qf4+ {[%clk 0:01:15]} 26. Nf3
{[%clk 0:00:19.3]} 26... Rc1+ {[%clk 0:01:08.3]} 27. Kf2 {[%clk 0:00:19.5]}
27... g5 {[%clk 0:00:49.3]} 28. Rd4 {[%clk 0:00:13]} 28... Qf5 {[%clk
0:00:46.1]} 29. Nd6 {[%clk 0:00:12.7]} 29... Qg6 {[%clk 0:00:44.4]} 30. h3
{[%clk 0:00:11.6]} 30... h5 {[%clk 0:00:38.3]} 31. Ne4 {[%clk 0:00:09.2]} 31...
Rfc8 {[%clk 0:00:34.2]} 32. Nf6+ {[%clk 0:00:07.9]} 32... Kg7 {[%clk 0:00:31.5]}
33. Rd2 {[%clk 0:00:08.8]} 33... g4 {[%clk 0:00:26]} 34. hxg4 {[%clk 0:00:09.7]}
34... hxg4 {[%clk 0:00:25.3]} 35. Nd4 {[%clk 0:00:03.4]} 35... g3+ {[%clk
0:00:22.6]} 36. Kf3 {[%clk 0:00:03.1]} 36... R8c3+ {[%clk 0:00:22.1]} 37. Kf4
{[%clk 0:00:03.4]} 37... Rh1 {[%clk 0:00:12.1]} 38. Nxe6+ {[%clk 0:00:03.4]}
38... fxe6 {[%clk 0:00:07.2]} 39. Rd7+ {[%clk 0:00:03.7]} 39... Kh6 {[%clk
0:00:07.5]} 40. Ng8+ {[%clk 0:00:02.5]} 40... Qxg8 {[%clk 0:00:06.9]} 41. Ke4
{[%clk 0:00:01.8]} 41... Rh4+ {[%clk 0:00:05.2]} 0-1

[Event "Early-Titled-Tuesday-Blitz-October-17-2023"]
[Site "Chess.com"]
[Date "2023.10.17"]
[Round "3"]
[White "crosky"]
[Black "jraosam"]
[Result "0-1"]
[WhiteElo "2333"]
[BlackElo "2076"]
[TimeControl "180+1"]
[EndTime "8:30:10 PDT"]
[Termination "jraosam won by resignation"]

1. c4 {[%clk 0:03:00.9]} 1... Nf6 {[%clk 0:02:57]} 2. Nc3 {[%clk 0:03:01]} 2...
e6 {[%clk 0:02:57.3]} 3. d4 {[%clk 0:03:01.1]} 3... d5 {[%clk 0:02:55.9]} 4.
cxd5 {[%clk 0:03:02]} 4... exd5 {[%clk 0:02:55]} 5. Bg5 {[%clk 0:03:02.4]} 5...
Nbd7 {[%clk 0:02:55.5]} 6. e3 {[%clk 0:03:02.2]} 6... c6 {[%clk 0:02:54.5]} 7.
Bd3 {[%clk 0:03:02.7]} 7... Bd6 {[%clk 0:02:54.6]} 8. Qc2 {[%clk 0:03:01.2]}
8... h6 {[%clk 0:02:53.7]} 9. Bh4 {[%clk 0:02:59.5]} 9... O-O {[%clk 0:02:53.8]}
10. Nge2 {[%clk 0:02:55.5]} 10... Re8 {[%clk 0:02:51.5]} 11. h3 {[%clk
0:02:52.3]} 11... Nf8 {[%clk 0:02:47.8]} 12. g4 {[%clk 0:02:43.7]} 12... g5
{[%clk 0:02:46.1]} 13. Bg3 {[%clk 0:02:44.2]} 13... Kg7 {[%clk 0:02:45.2]} 14.
O-O-O {[%clk 0:02:40.5]} 14... Ng6 {[%clk 0:02:42.4]} 15. Bxd6 {[%clk 0:02:29]}
15... Qxd6 {[%clk 0:02:41]} 16. Ng3 {[%clk 0:02:29.9]} 16... Nh4 {[%clk
0:02:33]} 17. Kb1 {[%clk 0:02:03.6]} 17... Bd7 {[%clk 0:02:19.3]} 18. e4 {[%clk
0:01:49.8]} 18... dxe4 {[%clk 0:02:14.4]} 19. Ncxe4 {[%clk 0:01:50.1]} 19...
Nxe4 {[%clk 0:02:05.8]} 20. Nxe4 {[%clk 0:01:45.1]} 20... Qf4 {[%clk 0:01:47.5]}
21. d5 {[%clk 0:01:30.1]} 21... cxd5 {[%clk 0:01:38]} 22. Qc3+ {[%clk
0:01:30.2]} 22... Qe5 {[%clk 0:01:35.5]} 23. Qxe5+ {[%clk 0:01:15.5]} 23... Rxe5
{[%clk 0:01:35.9]} 24. Ng3 {[%clk 0:01:16.4]} 24... f5 {[%clk 0:01:24.2]} 25. f4
{[%clk 0:01:08.5]} 25... Re3 {[%clk 0:01:15.5]} 26. Nh5+ {[%clk 0:01:04.3]}
26... Kf7 {[%clk 0:01:09.4]} 27. fxg5 {[%clk 0:01:02.1]} 27... hxg5 {[%clk
0:01:07.7]} 28. gxf5 {[%clk 0:01:00.9]} 28... Rxd3 {[%clk 0:01:00.5]} 29. Rxd3
{[%clk 0:00:52.5]} 29... Bxf5 {[%clk 0:01:01]} 30. Rf1 {[%clk 0:00:53.4]} 30...
Kg6 {[%clk 0:00:59.2]} 31. Rxf5 {[%clk 0:00:51.6]} 31... Nxf5 {[%clk 0:00:58.5]}
32. Rxd5 {[%clk 0:00:51.5]} 32... Ne3 {[%clk 0:00:52.1]} 33. Rd3 {[%clk
0:00:48]} 33... Kxh5 {[%clk 0:00:43]} 34. Rxe3 {[%clk 0:00:48.1]} 34... Kh4
{[%clk 0:00:43.6]} 35. Kc2 {[%clk 0:00:45.1]} 35... Rc8+ {[%clk 0:00:42.7]} 36.
Kb3 {[%clk 0:00:44.2]} 36... Rc6 {[%clk 0:00:42.4]} 37. a4 {[%clk 0:00:42.4]}
37... Rb6+ {[%clk 0:00:42.2]} 38. Kc3 {[%clk 0:00:42]} 38... Rc6+ {[%clk
0:00:37.5]} 39. Kd4 {[%clk 0:00:39.8]} 39... Rc2 {[%clk 0:00:36.6]} 40. b4
{[%clk 0:00:38.4]} 40... Ra2 {[%clk 0:00:32.3]} 41. a5 {[%clk 0:00:37.9]} 41...
b6 {[%clk 0:00:32.9]} 42. axb6 {[%clk 0:00:34]} 42... axb6 {[%clk 0:00:33.8]}
43. Kc4 {[%clk 0:00:33.7]} 43... Rh2 {[%clk 0:00:31]} 44. Kb5 {[%clk 0:00:29.9]}
44... Rxh3 {[%clk 0:00:31.3]} 45. Rxh3+ {[%clk 0:00:20.6]} 45... Kxh3 {[%clk
0:00:30.4]} 46. Kxb6 {[%clk 0:00:21.5]} 46... g4 {[%clk 0:00:30.2]} 47. Kc7
{[%clk 0:00:22.4]} 47... g3 {[%clk 0:00:29.9]} 48. b5 {[%clk 0:00:23.3]} 48...
g2 {[%clk 0:00:30.2]} 49. b6 {[%clk 0:00:24.2]} 49... g1=Q {[%clk 0:00:29.4]}
50. b7 {[%clk 0:00:25.1]} 50... Qc5+ {[%clk 0:00:29.3]} 51. Kd8 {[%clk
0:00:24.5]} 51... Qd6+ {[%clk 0:00:28.9]} 52. Kc8 {[%clk 0:00:24.7]} 52... Qc6+
{[%clk 0:00:29.6]} 53. Kb8 {[%clk 0:00:25]} 53... Kg4 {[%clk 0:00:30.1]} 54. Ka7
{[%clk 0:00:24.7]} 54... Qc7 {[%clk 0:00:30.3]} 55. Ka8 {[%clk 0:00:24.8]} 55...
Qa5+ {[%clk 0:00:29.7]} 56. Kb8 {[%clk 0:00:25.4]} 56... Kf5 {[%clk 0:00:30]}
57. Kc8 {[%clk 0:00:26]} 57... Qc5+ {[%clk 0:00:30.1]} 58. Kd7 {[%clk
0:00:24.8]} 58... Qb5+ {[%clk 0:00:29.9]} 59. Kc8 {[%clk 0:00:25]} 59... Qc6+
{[%clk 0:00:29.9]} 60. Kb8 {[%clk 0:00:25.2]} 60... Ke6 {[%clk 0:00:29.8]} 61.
Ka7 {[%clk 0:00:26.1]} 61... Qa4+ {[%clk 0:00:29.6]} 62. Kb6 {[%clk 0:00:25.8]}
62... Qb4+ {[%clk 0:00:30.2]} 63. Ka7 {[%clk 0:00:24.6]} 63... Qa5+ {[%clk
0:00:29.6]} 64. Kb8 {[%clk 0:00:24.8]} 64... Kd6 {[%clk 0:00:30]} 0-1

[Event "Early-Titled-Tuesday-Blitz-October-17-2023"]
[Site "Chess.com"]
[Date "2023.10.17"]
[Round "3"]
[White "PapiPapita"]
[Black "Gravity_Chess"]
[Result "0-1"]
[WhiteElo "2636"]
[BlackElo "2859"]
[TimeControl "180+1"]
[EndTime "8:30:16 PDT"]
[Termination "Gravity_Chess won by resignation"]

1. d4 {[%clk 0:02:57.4]} 1... Nf6 {[%clk 0:02:59.9]} 2. Bf4 {[%clk 0:02:56.2]}
2... e6 {[%clk 0:03:00.1]} 3. e3 {[%clk 0:02:56.9]} 3... b6 {[%clk 0:03:00.7]}
4. Nf3 {[%clk 0:02:51.4]} 4... Bb7 {[%clk 0:03:01.1]} 5. Nbd2 {[%clk 0:02:52.1]}
5... h6 {[%clk 0:02:55.7]} 6. h3 {[%clk 0:02:50.7]} 6... Bd6 {[%clk 0:02:56.1]}
7. Bxd6 {[%clk 0:02:48.3]} 7... cxd6 {[%clk 0:02:57]} 8. Bd3 {[%clk 0:02:48.2]}
8... d5 {[%clk 0:02:56.5]} 9. a4 {[%clk 0:02:45.7]} 9... Nc6 {[%clk 0:02:56.3]}
10. c3 {[%clk 0:02:45.3]} 10... Qc7 {[%clk 0:02:51.7]} 11. Qe2 {[%clk
0:02:44.6]} 11... O-O {[%clk 0:02:45.6]} 12. g4 {[%clk 0:02:39]} 12... g6 {[%clk
0:02:10.7]} 13. h4 {[%clk 0:02:22.6]} 13... Nxg4 {[%clk 0:01:54.9]} 14. h5
{[%clk 0:02:22.1]} 14... f5 {[%clk 0:01:48.5]} 15. hxg6 {[%clk 0:02:07.7]} 15...
Kg7 {[%clk 0:01:48.4]} 16. Nh4 {[%clk 0:01:48.9]} 16... Ne7 {[%clk 0:01:39.7]}
17. O-O-O {[%clk 0:01:45.3]} 17... Bc6 {[%clk 0:01:21.1]} 18. f3 {[%clk
0:01:23.5]} 18... Nf6 {[%clk 0:01:18.2]} 19. e4 {[%clk 0:01:22.3]} 19... dxe4
{[%clk 0:01:12.3]} 20. fxe4 {[%clk 0:01:19.1]} 20... fxe4 {[%clk 0:01:12.8]} 21.
Bc2 {[%clk 0:00:51.7]} 21... d5 {[%clk 0:01:13.2]} 22. Qe3 {[%clk 0:00:46.7]}
22... Rh8 {[%clk 0:01:03.9]} 23. Qh3 {[%clk 0:00:43.3]} 23... Qd7 {[%clk
0:00:58.5]} 24. Rdf1 {[%clk 0:00:43]} 24... Raf8 {[%clk 0:00:58.7]} 25. Ng2
{[%clk 0:00:31]} 25... Qd6 {[%clk 0:00:30.4]} 26. Ne3 {[%clk 0:00:19.5]} 26...
Bd7 {[%clk 0:00:24.5]} 27. Qh4 {[%clk 0:00:18.4]} 27... e5 {[%clk 0:00:21.6]}
28. dxe5 {[%clk 0:00:15.2]} 28... Qxe5 {[%clk 0:00:20.3]} 29. Nb3 {[%clk
0:00:15.7]} 29... Qg5 {[%clk 0:00:17.8]} 30. Qe1 {[%clk 0:00:14.9]} 30... Nf5
{[%clk 0:00:17.4]} 31. Kd2 {[%clk 0:00:10.2]} 31... Nxe3 {[%clk 0:00:17]} 32.
Qxe3 {[%clk 0:00:11.1]} 32... Qxe3+ {[%clk 0:00:17.9]} 33. Kxe3 {[%clk 0:00:12]}
33... Ng4+ {[%clk 0:00:18.4]} 34. Kd4 {[%clk 0:00:12.1]} 34... Rxf1 {[%clk
0:00:17.8]} 35. Rxf1 {[%clk 0:00:13]} 35... Kxg6 {[%clk 0:00:18.3]} 36. Kxd5
{[%clk 0:00:12.1]} 36... Ne3+ {[%clk 0:00:15.9]} 37. Kd6 {[%clk 0:00:10.8]}
37... Nxf1 {[%clk 0:00:14.9]} 38. Kxd7 {[%clk 0:00:10.9]} 38... Ng3 {[%clk
0:00:15.3]} 39. Nd4 {[%clk 0:00:10.1]} 39... h5 {[%clk 0:00:14.7]} 40. a5 {[%clk
0:00:08.3]} 40... h4 {[%clk 0:00:14.7]} 41. a6 {[%clk 0:00:07.9]} 41... h3
{[%clk 0:00:15.3]} 42. Nf3 {[%clk 0:00:07.1]} 42... Kf5 {[%clk 0:00:13.9]} 43.
Nh2 {[%clk 0:00:07.2]} 43... Kf4 {[%clk 0:00:14.1]} 44. Kc7 {[%clk 0:00:06]}
44... Nf5 {[%clk 0:00:14.5]} 45. Kb7 {[%clk 0:00:06.1]} 45... Rh7+ {[%clk
0:00:15]} 46. Ka8 {[%clk 0:00:05.9]} 46... Ne3 {[%clk 0:00:15.4]} 47. Bb1 {[%clk
0:00:03.6]} 47... Re7 {[%clk 0:00:15.7]} 48. b4 {[%clk 0:00:03.4]} 48... Ng4
{[%clk 0:00:16.2]} 49. b5 {[%clk 0:00:04.3]} 49... Nxh2 {[%clk 0:00:15.7]} 50.
c4 {[%clk 0:00:04.3]} 50... Ng4 {[%clk 0:00:14.8]} 51. c5 {[%clk 0:00:05.2]}
51... h2 {[%clk 0:00:13.4]} 52. Bxe4 {[%clk 0:00:03.4]} 52... bxc5 {[%clk
0:00:10.8]} 53. b6 {[%clk 0:00:02.9]} 53... axb6 {[%clk 0:00:09.8]} 54. a7
{[%clk 0:00:03.1]} 54... Rxa7+ {[%clk 0:00:09.3]} 55. Kxa7 {[%clk 0:00:04]}
55... Kxe4 {[%clk 0:00:10.1]} 56. Kxb6 {[%clk 0:00:03.9]} 56... h1=Q {[%clk
0:00:10.7]} 57. Kxc5 {[%clk 0:00:04.8]} 57... Qd1 {[%clk 0:00:10.9]} 0-1

[Event "Early-Titled-Tuesday-Blitz-October-17-2023"]
[Site "Chess.com"]
[Date "2023.10.17"]
[Round "3"]
[White "krzyzan94"]
[Black "Mesa_1"]
[Result "1-0"]
[WhiteElo "2800"]
[BlackElo "2588"]
[TimeControl "180+1"]
[EndTime "8:30:16 PDT"]
[Termination "krzyzan94 won by checkmate"]

1. e4 {[%clk 0:03:00.9]} 1... d6 {[%clk 0:02:56.8]} 2. d4 {[%clk 0:03:00.6]}
2... Nf6 {[%clk 0:02:57.6]} 3. Nc3 {[%clk 0:03:00.6]} 3... e5 {[%clk 0:02:58.2]}
4. Nge2 {[%clk 0:02:57.4]} 4... Nbd7 {[%clk 0:02:52.2]} 5. h3 {[%clk 0:02:56.8]}
5... Be7 {[%clk 0:02:49.2]} 6. g4 {[%clk 0:02:56.9]} 6... O-O {[%clk 0:02:49.4]}
7. Bg2 {[%clk 0:02:56.1]} 7... c6 {[%clk 0:02:49.6]} 8. a4 {[%clk 0:02:54.7]}
8... a5 {[%clk 0:02:49.8]} 9. O-O {[%clk 0:02:54.2]} 9... Re8 {[%clk 0:02:50.4]}
10. Ng3 {[%clk 0:02:45.3]} 10... h6 {[%clk 0:02:49.8]} 11. Be3 {[%clk
0:02:40.6]} 11... Bf8 {[%clk 0:02:47.7]} 12. f4 {[%clk 0:02:34]} 12... b6 {[%clk
0:02:38.4]} 13. g5 {[%clk 0:02:13.5]} 13... exd4 {[%clk 0:02:17.6]} 14. Qxd4
{[%clk 0:01:42.2]} 14... hxg5 {[%clk 0:01:53.2]} 15. fxg5 {[%clk 0:01:43.1]}
15... Nh7 {[%clk 0:01:49.3]} 16. Nf5 {[%clk 0:00:49.1]} 16... Nxg5 {[%clk
0:01:32.2]} 17. Nxd6 {[%clk 0:00:45.3]} 17... Ne5 {[%clk 0:01:23.5]} 18. Nxe8
{[%clk 0:00:41]} 18... Qxe8 {[%clk 0:01:09.4]} 19. Qxb6 {[%clk 0:00:17.9]} 19...
Nxh3+ {[%clk 0:00:51.7]} 20. Bxh3 {[%clk 0:00:17.6]} 20... Bxh3 {[%clk
0:00:52.6]} 21. Rf4 {[%clk 0:00:14.1]} 21... Ng4 {[%clk 0:00:48.8]} 22. Rf3
{[%clk 0:00:11.6]} 22... Rb8 {[%clk 0:00:43.3]} 23. Qa7 {[%clk 0:00:11.1]} 23...
Ra8 {[%clk 0:00:36.5]} 24. Qb6 {[%clk 0:00:11.3]} 24... Rb8 {[%clk 0:00:35.6]}
25. Qxa5 {[%clk 0:00:11.1]} 25... Bb4 {[%clk 0:00:32.7]} 26. Qg5 {[%clk
0:00:09.8]} 26... f6 {[%clk 0:00:28.2]} 27. Qh4 {[%clk 0:00:07.9]} 27... Nxe3
{[%clk 0:00:27.4]} 28. Rxh3 {[%clk 0:00:08.2]} 28... Nxc2 {[%clk 0:00:20.1]} 29.
Qh8+ {[%clk 0:00:05.6]} 29... Kf7 {[%clk 0:00:20.2]} 30. Qxe8+ {[%clk
0:00:06.5]} 30... Rxe8 {[%clk 0:00:19.6]} 31. Rd1 {[%clk 0:00:06]} 31... Bc5+
{[%clk 0:00:18.4]} 32. Kh1 {[%clk 0:00:06]} 32... Ne3 {[%clk 0:00:15.5]} 33.
Rd7+ {[%clk 0:00:06.5]} 33... Ke6 {[%clk 0:00:12.1]} 34. Rc7 {[%clk 0:00:06.9]}
34... Kd6 {[%clk 0:00:11.2]} 35. Rxg7 {[%clk 0:00:07.1]} 35... Rb8 {[%clk
0:00:11.9]} 36. e5+ {[%clk 0:00:06.3]} 36... Kxe5 {[%clk 0:00:10.5]} 37. Rc7
{[%clk 0:00:02.9]} 37... Rxb2 {[%clk 0:00:08.1]} 38. Rxc6 {[%clk 0:00:03.3]}
38... Bd4 {[%clk 0:00:07.5]} 39. Rh5+ {[%clk 0:00:02.7]} 39... f5 {[%clk
0:00:06.1]} 40. Rh8 {[%clk 0:00:03.6]} 40... Rc2 {[%clk 0:00:02.9]} 41. Re8+
{[%clk 0:00:04.1]} 41... Kf4 {[%clk 0:00:03]} 42. Nd5+ {[%clk 0:00:04.4]} 42...
Kf3 {[%clk 0:00:02.8]} 43. Rxc2 {[%clk 0:00:05.3]} 43... Nxc2 {[%clk 0:00:03.1]}
44. a5 {[%clk 0:00:05.8]} 44... f4 {[%clk 0:00:02.9]} 45. Rf8 {[%clk 0:00:05.4]}
45... Be5 {[%clk 0:00:01.9]} 46. a6 {[%clk 0:00:05.5]} 46... Ke2 {[%clk
0:00:02.4]} 47. a7 {[%clk 0:00:05.8]} 47... Bd4 {[%clk 0:00:01.7]} 48. a8=Q
{[%clk 0:00:06]} 48... f3 {[%clk 0:00:02.3]} 49. Qa6+ {[%clk 0:00:05.7]} 49...
Kf2 {[%clk 0:00:03.1]} 50. Qd3 {[%clk 0:00:05.5]} 50... Be3 {[%clk 0:00:02.7]}
51. Qxc2+ {[%clk 0:00:05.5]} 51... Kg3 {[%clk 0:00:03.6]} 52. Nxe3 {[%clk
0:00:04.4]} 52... f2 {[%clk 0:00:04.5]} 53. Qxf2+ {[%clk 0:00:05]} 53... Kh3
{[%clk 0:00:04.8]} 54. Rh8# {[%clk 0:00:04.9]} 1-0